fUSD/lending_fUSD_20240403
["ID","MTS","AMOUNT","RATE_DAILY","PERIOD"]
[321412647,1712165437144,-212.0,0.00032078,2]
[321412648,1712165437153,-5800.0,0.000321,2]
[321412649,1712165437162,-5800.0,0.000321,2]
[321412650,1712165437171,-920.35212478,0.000321,3]
[321412651,1712165437181,-5800.0,0.000321,2]
[321412652,1712165437194,-437.50390823,0.000321,2]
[321412653,1712165437203,-208.69298692,0.000321,2]
[321412654,1712165437214,-532.4660618,0.000321,2]
[321412655,1712165437224,-1096.31580174,0.000321,2]
[321412656,1712165437234,-150.5,0.0003217,15]
[321412657,1712165437243,-200.0,0.00032176,2]
[321412658,1712165437253,-2605.5102613,0.00032178,2]
[321412659,1712165437262,-2731.6478984,0.00032178,2]
[321412660,1712165437272,-1558.74179158,0.00032178,2]
[321412661,1712165437285,-853.4240486,0.00032178,2]
[321412678,1712165439500,-500.0,0.00024879,2]
[321412679,1712165439510,-190.3102963,0.000249,2]
[321412680,1712165439575,-149.27490381,0.000249,2]
[321412681,1712165439585,-339.58520011,0.000249,2]
[321412682,1712165439594,-339.58520011,0.000249,2]
[321412683,1712165439604,-339.58520011,0.000249,2]
[321412684,1712165439613,-339.58520011,0.000249,2]
[321412685,1712165439622,-339.58520011,0.000249,2]
[321412686,1712165439633,-339.58520011,0.000249,2]
[321412687,1712165439643,-339.58520011,0.00024938,2]
[321412688,1712165439652,-339.58520011,0.00024938,2]
[321412689,1712165439661,-339.58520011,0.00024938,2]
[321412690,1712165439670,-43.67545382,0.00024938,2]
[321412695,1712165440565,-295.90974629,0.00024938,2]
[321412696,1712165440574,-339.58520011,0.00024938,2]
[321412697,1712165440583,-339.58520011,0.00024938,2]
[321412698,1712165440593,-194.28850831,0.00024938,2]
[321412699,1712165443471,-145.2966918,0.00024938,2]
[321412700,1712165443481,-179.4173042,0.00024938,2]
[321412701,1712165443787,-160.16789591,0.00024938,2]
[321412702,1712165443797,-339.58520011,0.00024938,2]
[321412703,1712165443808,-339.58520011,0.00024938,2]
[321412704,1712165443817,-339.58520011,0.00024938,2]
[321412705,1712165443827,-339.58520011,0.00024938,2]
[321412706,1712165443838,-339.58520011,0.00024938,2]
[321412707,1712165443848,-339.58520011,0.00024938,2]
[321412708,1712165443858,-339.58520011,0.00024938,2]
[321412709,1712165443867,-1057.546,0.00024948,2]
[321412710,1712165443877,-150.0,0.00024948,2]
[321412711,1712165443886,-1059.885,0.00024948,2]
[321412712,1712165443896,-1283.375,0.00024948,2]
[321412713,1712165443906,-673.25776891,0.00024999,2]
[321412714,1712165443915,-453.18,0.00027123,2]
[321412715,1712165443925,-1049.0,0.00027948,2]
[321412716,1712165443935,-1270.0,0.00027948,2]
[321412717,1712165443947,-1270.0,0.00030948,2]
[321412718,1712165443957,-673.25776891,0.00032177,2]
[321412719,1712165443966,-3187.44026434,0.00032178,2]
[321412744,1712165523115,460.0,0.000322,120]
[321412745,1712165543344,1250.0,0.00021,3]
[321412746,1712165544082,1300.0,0.00023,3]
[321412747,1712166274412,156.19,0.00029992,120]
[321412773,1712166618098,361.0881052,0.00020531,2]
[321412774,1712166624121,254.99524155,0.00022494,2]
[321412793,1712166631559,-347.54903404,0.00024381,2]
[321412794,1712166631622,-507.83284696,0.00024381,2]
[321412795,1712166631631,-330.66715304,0.00024701,2]
[321412796,1712166631643,-169.33284696,0.00024701,2]
[321412797,1712166631652,-244.02339717,0.00025,3]
[321412798,1712166631813,-1105.97660283,0.00025,3]
[321412799,1712166631823,-299.71,0.00025,2]
[321412800,1712166631833,-155.0,0.00025664,2]
[321412801,1712166631842,-239.41044962,0.00025665,2]
[321412802,1712166631853,-812.289,0.00025666,2]
[321412803,1712166631863,-282.045,0.00025666,2]
[321412804,1712166631872,-606.0,0.00025666,2]
[321412805,1712166631881,-434.0,0.00025666,2]
[321412806,1712166631890,-1141.0,0.00025666,2]
[321412807,1712166631900,-1478.885,0.00025666,2]
[321412808,1712166631911,-397.0,0.00025666,2]
[321412809,1712166631920,-150.0,0.00025666,2]
[321412810,1712166631929,-3031.0,0.00025666,2]
[321412811,1712166631938,-1631.0,0.00025666,2]
[321412812,1712166631948,-1395.39833755,0.00025666,2]
[321412842,1712166637633,-1034.60166245,0.00025666,2]
[321412843,1712166637643,-279.084,0.00025666,2]
[321412844,1712166637655,-214.0,0.00025666,2]
[321412845,1712166637665,-206.0,0.00025666,2]
[321412846,1712166637676,-2176.712,0.00025666,2]
[321412847,1712166637686,-3484.983,0.00025666,2]
[321412848,1712166637696,-12123.64090218,0.00025666,2]
[321412849,1712166637709,-385.38170658,0.00025666,2]
[321412850,1712166637736,-26022.93808006,0.00025666,2]
[321412851,1712166637767,-258.94366881,0.00025666,2]
[321412852,1712166637780,-1624.20869898,0.00025666,2]
[321412853,1712166637924,-364.6948537,0.00025666,2]
[321412854,1712166637962,-343.50000001,0.00025666,2]
[321413008,1712166639619,-774.1338722,0.00025666,2]
[321413025,1712166640353,-953.56826015,0.00025666,2]
[321413026,1712166640401,-230.98995733,0.00025666,2]
[321413027,1712166640412,-2456.0,0.00025666,2]
[321413028,1712166640422,-150.0,0.00025666,2]
[321413029,1712166640432,-500.0,0.00026506,2]
[321413030,1712166640443,-1400.0,0.00027,3]
[321413031,1712166640453,-1366.37557177,0.00028,2]
[321413032,1712166640463,-469.25887566,0.00028,2]
[321413033,1712166640474,-1200.0,0.00028,29]
[321413034,1712166640484,-647.3,0.0002808,2]
[321413035,1712166640495,-200.0,0.00028311,2]
[321413036,1712166640505,-500.0,0.00028311,2]
[321413037,1712166640515,-155.0,0.00028492,30]
[321413038,1712166640524,-950.86224971,0.00028492,2]
[321413039,1712166640535,-804.0,0.00028666,2]
[321413040,1712166640545,-279.0,0.00028666,2]
[321413041,1712166640556,-315.204,0.00028666,2]
[321413042,1712166640568,-434.0,0.00028666,2]
[321413043,1712166640579,-1139.0,0.00028666,2]
[321413044,1712166640590,-1466.0,0.00028666,2]
[321413045,1712166640602,-3031.0,0.00028666,2]
[321413046,1712166640614,-1631.0,0.00028666,2]
[321413047,1712166640625,-2430.0,0.00028666,2]
[321413048,1712166640636,-214.0,0.00028666,2]
[321413049,1712166640647,-206.0,0.00028666,2]
[321413050,1712166640658,-156.99834559,0.00028976,2]
[321413051,1712166640667,-747.70725432,0.00028976,2]
[321413052,1712166640678,-600.0,0.00029,30]
[321413053,1712166640688,-1450.0,0.00029,3]
[321413054,1712166640698,-440.96392074,0.000295,3]
[321413055,1712166640708,-200.0,0.00029842,2]
[321413056,1712166640718,-1041.7,0.0002985,2]
[321413057,1712166640727,-150.0,0.0002985,2]
[321413058,1712166640737,-293.73,0.00029865,2]
[321413059,1712166640746,-250.0,0.00029921,2]
[321413060,1712166640756,-233.83,0.0002993,2]
[321413061,1712166640766,-374.4,0.00029932,2]
[321413062,1712166640775,-500.0,0.00029945,2]
[321413063,1712166640784,-500.0,0.00029953,2]
[321413064,1712166640794,-1335.35,0.00029973,2]
[321413065,1712166640807,-1364.58,0.00029984,2]
[321413066,1712166640816,-2639.48076778,0.00029991,2]
[321413067,1712166640826,-155.0,0.00029992,2]
[321413068,1712166640837,-200.0,0.00029992,2]
[321413069,1712166640847,-155.0,0.00029992,2]
[321413070,1712166640858,-364.59949818,0.00029992,2]
[321413071,1712166640868,-1720.52295017,0.00029992,2]
[321413072,1712166640878,-886.63219486,0.00029992,2]
[321413073,1712166640889,-8845.52166561,0.00029992,2]
[321413074,1712166640898,-2205.64059129,0.00029992,2]
[321413075,1712166640908,-863.66258038,0.00029992,2]
[321413076,1712166640918,-2457.19292266,0.00029992,2]
[321413077,1712166640927,-585.60937255,0.00029992,2]
[321413078,1712166640937,-20106.63382624,0.00029992,2]
[321413079,1712166640947,-405.14841286,0.0003,4]
[321413080,1712166640957,-3205.84389542,0.0003,2]
[321413081,1712166640967,-600.0,0.0003,31]
[321413082,1712166640976,-625.6,0.00030097,2]
[321413083,1712166640987,-500.0,0.00030115,2]
[321413084,1712166640996,-158.08,0.0003016,2]
[321413085,1712166641006,-161.66,0.00030287,2]
[321413086,1712166641015,-647.3,0.00030344,2]
[321413087,1712166641025,-158.08,0.00030422,2]
[321413088,1712166641034,-2853.79331489,0.00030585,2]
[321413089,1712166641044,-150.0,0.000306,2]
[321413090,1712166641053,-158.08,0.00030684,2]
[321413091,1712166641063,-166.84,0.0003071,2]
[321413092,1712166641073,-158.08,0.00030946,2]
[321413093,1712166641084,-489.98833825,0.00031,4]
[321413094,1712166641099,-600.0,0.00031,32]
[321413095,1712166641108,-1500.0,0.00031,3]
[321413096,1712166641119,-150.0,0.000311,2]
[321413097,1712166641128,-158.08,0.00031208,2]
[321413098,1712166641138,-161.57,0.00031453,2]
[321413099,1712166641147,-150.0,0.00031453,2]
[321413100,1712166641158,-150.0,0.00031453,2]
[321413101,1712166641169,-150.0,0.00031453,2]
[321413102,1712166641178,-158.08,0.0003147,2]
[321413103,1712166641187,-2722.68,0.00031507,2]
[321413104,1712166641198,-150.0,0.000316,3]
[321413105,1712166641208,-202.5,0.00031644,2]
[321413106,1712166641218,-434.0,0.00031666,2]
[321413107,1712166641227,-1139.0,0.00031666,2]
[321413108,1712166641237,-1466.0,0.00031666,2]
[321413109,1712166641246,-3031.0,0.00031666,2]
[321413110,1712166641255,-1631.0,0.00031666,2]
[321413111,1712166641264,-2430.0,0.00031666,2]
[321413112,1712166641274,-214.0,0.00031666,2]
[321413113,1712166641284,-158.08,0.00031732,2]
[321413114,1712166641294,-200.0,0.0003192,2]
[321413115,1712166641304,-500.0,0.0003192,2]
[321413116,1712166641315,-600.0,0.00032,33]
[321413117,1712166641326,-150.0,0.00032037,2]
[321413118,1712166641335,-568.6844637,0.00032094,4]
[321413119,1712166641345,-3553.16219098,0.00032095,2]
[321413120,1712166641355,-2592.7108,0.00032095,2]
[321413121,1712166641366,-1060.9701,0.00032096,2]
[321413122,1712166641378,-1041.6383,0.00032096,2]
[321413123,1712166641388,-2500.0,0.00032096,2]
[321413124,1712166641398,-4670.0855211,0.00032097,2]
[321413125,1712166641408,-1000.0,0.00032097,2]
[321413126,1712166641418,-154.54090375,0.000321,2]
[321413127,1712166641428,-150.0,0.000321,3]
[321413128,1712166641438,-171.40348198,0.000321,5]
[321413129,1712166641447,-227.56249749,0.000321,20]
[321413130,1712166641458,-1248.61877619,0.000321,3]
[321413131,1712166641467,-7220.20019999,0.000321,2]
[321413132,1712166641477,-292.7698062,0.000321,2]
[321413133,1712166641487,-354.97737452,0.000321,2]
[321413134,1712166641496,-150.5,0.0003217,15]
[321413135,1712166641505,-589.1005478,0.00032177,2]
[321413136,1712166641514,-399.84525,0.00032178,2]
[321413137,1712166641524,-150.5,0.0003218,15]
[321413138,1712166641532,-150.5,0.0003219,15]
[321413139,1712166641542,-2548.95216391,0.00032195,2]
[321413140,1712166641555,-579.85,0.00032195,2]
[321413141,1712166641578,-631.76519165,0.00032195,2]
[321413154,1712166642808,-3922.66446275,0.00032096,2]
[321413175,1712166645696,-2314.76,0.00025537,2]
[321413176,1712166645710,-1811.24043065,0.00025537,2]
[321413177,1712166645893,-1670.79163656,0.00025537,2]
[321413178,1712166645904,-3298.21251024,0.00025537,2]
[321413179,1712166645916,-6508.86924455,0.00025537,2]
[321413180,1712166645926,-74.56377625,0.00032096,2]
[321413183,1712166665261,12566.0,0.00023,2]
[321413191,1712166725706,155.0,0.00023,2]
[321413193,1712166729107,2205.64059129,0.00023,2]
[321413194,1712166730066,2457.19292266,0.00023,2]
[321413196,1712166743783,155.0,0.00023,2]
[321413197,1712166745143,2205.64059129,0.00023,2]
[321413198,1712166746650,2457.19292266,0.00023,2]
[321413199,1712166765096,1330.26611344,0.00023,2]
[321413200,1712166766074,2457.19292266,0.00023,2]
[321413201,1712166768097,155.0,0.00023,2]
[321413204,1712166785697,155.0,0.00023,2]
[321413205,1712166790081,2457.19292266,0.00023,2]
[321413206,1712166803748,155.0,0.00023,2]
[321413207,1712166812079,2001.87986845,0.00023,2]
[321413208,1712166819720,178.67246731,0.00023,2]
[321413210,1712167038820,-155.0,0.00023759,2]
[321413211,1712167038841,-865.4932854,0.0002376,2]
[321413212,1712167038861,-8979.5067146,0.0002386,2]
[321413213,1712167049697,220.79,0.00022272,2]
[321413214,1712167199667,-342.13418829,0.0002352,2]
[321413215,1712167199687,-4657.86581171,0.00023521,2]
[321413216,1712167223779,186.53,0.00022271,2]
[321413217,1712167233185,246.69833208,0.00020698,2]
[321413218,1712167293462,155.0,0.00020698,2]
[321413219,1712167307328,156.26424243,0.00020698,2]
[321413220,1712167326330,-237.22926204,0.00023521,2]
[321413221,1712167326351,-237.22926202,0.00023575,2]
[321413222,1712167326372,-186.15921104,0.00023621,2]
[321413223,1712167326394,-237.22926202,0.00023629,2]
[321413224,1712167326415,-1412.36296071,0.00023729,2]
[321413225,1712167326436,-2390.79004217,0.00024,2]
[321413226,1712167361930,1250.0,0.00021,3]
[321413227,1712167363022,1300.0,0.00023,3]
[321413228,1712167760317,-790.2794,0.00023641,2]
[321413229,1712167760347,-186.15921104,0.0002376,2]
[321413230,1712167760368,-1109.20995783,0.00024,2]
[321413231,1712167760391,-17354.35143113,0.00024,2]
[321413234,1712167782513,-186.15921104,0.0002376,2]
[321413235,1712167782537,-19438.13310179,0.00023999,2]
[321413236,1712167782561,-49725.70768717,0.00024,2]
[321413249,1712167831779,-186.15921105,0.0002376,2]
[321413250,1712167831789,-1266.95048109,0.00024,2]
[321413251,1712167831801,-2214.17824138,0.00024,2]
[321413252,1712167831820,-5303.3560839,0.00024,2]
[321413253,1712167831832,-2997.08030588,0.00024,2]
[321413254,1712167831884,-9059.03597443,0.00024,2]
[321413255,1712167831896,-706.46029181,0.00024,2]
[321413256,1712167831946,-363.76455997,0.00024,2]
[321413257,1712167832008,-892.96192,0.00024,2]
[321413258,1712167832072,-547.7927,0.00024,2]
[321413259,1712167832134,-32216.29423155,0.00024,2]
[321413280,1712167838062,-330.95246813,0.00023999,2]
[321413281,1712167838072,-697.59496229,0.00024,2]
[321413282,1712167838084,-683.76744958,0.00024,2]
[321413283,1712167838109,-594.94126927,0.00024,2]
[321413284,1712167838121,-9990.72878841,0.00024,2]
[321413285,1712167838161,-392.83190755,0.00024,2]
[321413301,1712167839941,-1650.35060193,0.00024,2]
[321413311,1712167842767,-654.58519903,0.00024,2]
[321413313,1712167842779,-1186.50819155,0.00024,2]
[321413314,1712167843003,-550260.75772208,0.00024,2]
[321413315,1712167843013,-2299.0414,0.000246,2]
[321413316,1712167843023,-435.0,0.000247,2]
[321413317,1712167843033,-19700.4175,0.0002488,2]
[321413318,1712167843042,-444.1418,0.000249,2]
[321413319,1712167843051,-171.40348198,0.000249,2]
[321413320,1712167843061,-339.52735211,0.00024978,2]
[321413321,1712167843071,-1209.67754842,0.00024978,2]
[321413323,1712167843080,-205.7011209,0.00024978,2]
[321413325,1712167843092,-266.49675638,0.00024978,2]
[321413327,1712167843102,-156.15727021,0.00024979,2]
[321413329,1712167843111,-7426.02336748,0.0002498,2]
[321413330,1712167843120,-68104.49077823,0.0002498,2]
[321413335,1712167843155,-1736.73000003,0.0002498,2]
[321413410,1712167845807,-3299.55,0.0002498,2]
[321413419,1712167998011,-808.30329148,0.00023899,2]
[321413420,1712167998045,-260.3255,0.000239,2]
[321413421,1712167998078,-150.0,0.00023999,2]
[321413422,1712167998116,-150.0,0.00023999,2]
[321413423,1712167998150,-45401.37120852,0.00024,2]
[321413424,1712168208449,-500.0,0.00023898,2]
[321413425,1712168208469,-150.0,0.00023899,2]
[321413426,1712168208488,-19438.13310179,0.00023899,2]
[321413427,1712168208508,-10986.3078,0.000239,2]
[321413428,1712168208531,-12785.55909821,0.00024,2]
[321413429,1712168290036,164.64,0.00024097,10]
[321413430,1712168558134,815.65,0.00022011,2]
[321413431,1712168608515,25703.84292535,0.00022011,2]
[321413432,1712168723237,-336.422569,0.00023513,2]
[321413433,1712168723260,-161.27,0.00023526,2]
[321413434,1712168723283,-1502.307431,0.00023632,2]
[321413435,1712168724699,-500.0,0.00023512,2]
[321413436,1712168724726,-512.902569,0.00023632,2]
[321413437,1712168724749,-302.14,0.00023722,2]
[321413438,1712168724771,-293.73,0.00023758,2]
[321413439,1712168724793,-391.227431,0.00023768,2]
[321413440,1712168724969,-2000.0,0.00023768,2]
[321413441,1712168725932,-2000.0,0.00023768,2]
[321413442,1712168726657,-2000.0,0.00023573,2]
[321413443,1712168726729,-994.3,0.00023573,2]
[321413444,1712168726751,-1005.7,0.00023768,2]
[321413445,1712168727228,-48.14,0.00023768,2]
[321413446,1712168727890,181.74660482,0.000236,2]
[321413447,1712168743151,-2000.0,0.000238,2]
[321413448,1712168743570,-2000.0,0.000238,2]
[321413449,1712168745739,-362.12751029,0.000238,2]
[321413450,1712168767102,-2000.0,0.00023788,2]
[321413451,1712168767324,-2000.0,0.00023788,2]
[321413452,1712168771834,-2000.0,0.00023788,2]
[321413453,1712168773631,-224.85,0.00023788,2]
[321413454,1712168773652,-150.0,0.00023809,2]
[321413455,1712168773674,-1625.15,0.0002381,2]
[321413456,1712168775991,-2000.0,0.0002381,2]
[321413457,1712168777674,-277.18,0.00023749,2]
[321413458,1712168777697,-482.51,0.0002381,2]
[321413459,1712168777723,-1143.39,0.0002381,2]
[321413460,1712168848395,96.92,0.00023804,2]
[321413461,1712168848417,2000.0,0.00023804,2]
[321413475,1712169031933,-279.1,0.00023103,2]
[321413477,1712169031944,-200.0,0.00023176,2]
[321413479,1712169031952,-687.56715413,0.00023212,2]
[321413482,1712169031994,-278.70824552,0.00023212,2]
[321413483,1712169032286,-800.39460035,0.00023212,2]
[321413484,1712169032296,-860.0,0.00023261,2]
[321413485,1712169032306,-250.0,0.00023284,2]
[321413486,1712169032318,-5368.83203164,0.00023321,2]
[321413487,1712169032327,-500.0,0.00023322,2]
[321413488,1712169032337,-402.57,0.00023362,2]
[321413489,1712169032346,-358.56739966,0.00023559,2]
[321413490,1712169032370,-141.43260034,0.00023559,2]
[321413491,1712169032379,-150.72,0.00023575,2]
[321413492,1712169032388,-150.72,0.00023599,2]
[321413494,1712169032576,-150.72,0.00023622,2]
[321413495,1712169032585,-315.97304012,0.00023622,2]
[321413496,1712169032653,-184.01695988,0.00023622,2]
[321413497,1712169032662,-150.72,0.00023646,2]
[321413498,1712169032671,-150.99,0.00023665,2]
[321413499,1712169032680,-468.4,0.00023666,2]
[321413500,1712169032690,-1567.63,0.00023666,2]
[321413501,1712169032699,-984.30256559,0.00023666,2]
[321413502,1712169032781,-9015.68743441,0.00023666,2]
[321413503,1712169032790,-150.72,0.00023669,2]
[321413504,1712169032799,-150.72,0.00023693,2]
[321413505,1712169032809,-19366.1011611,0.00023706,2]
[321413506,1712169032819,-1483.57,0.00023707,2]
[321413507,1712169032829,-365.15,0.00023707,2]
[321413508,1712169032838,-167.8,0.00023798,2]
[321413509,1712169032848,-21803.08,0.00023804,2]
[321413510,1712169032857,-664.73,0.00023829,2]
[321413511,1712169032866,-205.762915,0.00023836,2]
[321413512,1712169032875,-500.0,0.00023904,2]
[321413513,1712169032884,-150.0,0.00023971,2]
[321413514,1712169032894,-531.06744537,0.00023998,2]
[321413515,1712169032903,-703.66801743,0.00023998,2]
[321413516,1712169032913,-4972.63837534,0.00023999,2]
[321413517,1712169032922,-9333.51102391,0.00024,2]
[321413518,1712169032933,-3926.27519146,0.00024,2]
[321413519,1712169032942,-253.24361536,0.00024,2]
[321413520,1712169032952,-250.0,0.00024114,2]
[321413521,1712169032962,-2252.44386633,0.00024114,2]
[321413532,1712169038017,-288.41386898,0.00023102,2]
[321413533,1712169038031,-490.2710785,0.00023102,2]
[321413534,1712169038041,-348.24637661,0.00023261,2]
[321413535,1712169038054,-19273.92275608,0.00023261,2]
[321413536,1712169038066,-616.02645569,0.00023261,2]
[321413537,1712169038081,-1147.09497069,0.00023261,2]
[321413538,1712169038163,-3160.63397273,0.00023261,2]
[321413539,1712169038300,-662.55302585,0.00023261,2]
[321413541,1712169038343,-563.03655603,0.00023261,2]
[321413550,1712169038462,-13181.91215638,0.00023261,2]
[321413593,1712169040165,-1218.0030848,0.00023261,2]
[321413594,1712169040277,-408.99421857,0.00023261,2]
[321413595,1712169042628,-7028.34899557,0.00023261,2]
[321413596,1712169042638,-1652.25613367,0.00024114,2]
[321413597,1712169042647,-150.99,0.00024114,2]
[321413598,1712169042656,-1111.03,0.00024114,2]
[321413599,1712169042665,-299.52,0.00024263,2]
[321413600,1712169042674,-815.65,0.00024275,2]
[321413601,1712169042684,-3321.99,0.00024477,2]
[321413602,1712169042693,-818.05,0.00024477,2]
[321413603,1712169042702,-1270.84,0.00024562,2]
[321413604,1712169042712,-167.57,0.00024621,2]
[321413605,1712169042722,-205.762915,0.00024658,2]
[321413606,1712169042732,-5525.22554939,0.00024678,2]
[321413607,1712169042741,-3696.844,0.00024678,2]
[321413609,1712169042750,-1156.786,0.0002468,2]
[321413611,1712169042760,-3973.56314102,0.0002468,2]
[321413612,1712169042774,-7392.21506814,0.0002468,2]
[321413613,1712169042783,-1156.0,0.000247,2]
[321413614,1712169042793,-165.43521576,0.0002473,2]
[321413615,1712169042802,-1209.67754842,0.00024778,2]
[321413617,1712169042812,-266.49675638,0.00024778,2]
[321413619,1712169042821,-160.91122999,0.00024778,2]
[321413621,1712169042831,-155.0,0.00024778,2]
[321413623,1712169042842,-169.12911613,0.00024778,2]
[321413624,1712169042852,-1940.988958,0.00024778,2]
[321413625,1712169042862,-1157.06697529,0.00024778,2]
[321413626,1712169042872,-591.21797444,0.00024778,2]
[321413628,1712169042881,-500.0,0.00024778,2]
[321413630,1712169042890,-155.0,0.00024778,2]
[321413632,1712169042900,-524.43854366,0.00024778,2]
[321413634,1712169042910,-155.81747597,0.00024779,2]
[321413635,1712169042919,-399.44206768,0.00024779,2]
[321413637,1712169042930,-19585.96663237,0.00024779,2]
[321413639,1712169042940,-49900.0,0.0002478,2]
[321413641,1712169042950,-4740.9745,0.0002478,2]
[321413643,1712169042960,-35260.2752,0.0002478,2]
[321413645,1712169042970,-276.34353101,0.00024879,2]
[321413647,1712169042980,-165357.5158,0.0002488,2]
[321413649,1712169042990,-122197.59575447,0.0002498,2]
[321413651,1712169043000,-200.0,0.0002498,2]
[321413652,1712169043010,-83817.2390655,0.00024981,2]
[321413653,1712169043019,-370.2678074,0.00024981,2]
[321413654,1712169043028,-344.16088307,0.00024998,2]
[321413656,1712169043038,-80433.71628081,0.00024999,2]
[321413658,1712169043048,-180214.37319093,0.00025,2]
[321413660,1712169043058,-1350.0,0.00025,3]
[321413662,1712169043068,-167.8,0.00025038,2]
[321413663,1712169043078,-170.5,0.00025088,2]
[321413664,1712169043088,-170.5,0.0002513,2]
[321413665,1712169043097,-170.5,0.00025172,2]
[321413666,1712169043106,-170.5,0.00025214,2]
[321413667,1712169043115,-200.0,0.0002523,2]
[321413668,1712169043125,-1452.30550456,0.00025278,2]
[321413669,1712169043134,-333.20437,0.0002541,2]
[321413670,1712169043144,-205.762915,0.00025479,2]
[321413671,1712169043153,-1195.0,0.00025666,2]
[321413672,1712169043162,-213.337,0.00025666,2]
[321413673,1712169043174,-2104.987,0.00025666,2]
[321413674,1712169043184,-183.253,0.00025666,2]
[321413675,1712169043193,-1248.331,0.00025666,2]
[321413676,1712169043202,-214.0,0.00025666,2]
[321413677,1712169043212,-333.20438,0.0002572,2]
[321413678,1712169043222,-333.20438,0.0002603,2]
[321413679,1712169043232,-164.55,0.00026233,2]
[321413680,1712169043241,-3973.56314093,0.0002626,2]
[321413681,1712169043250,-7392.21506808,0.0002626,2]
[321413682,1712169043259,-205.762915,0.00026301,2]
[321413683,1712169043268,-333.20437,0.0002635,2]
[321413684,1712169043278,-170.2,0.00026441,2]
[321413685,1712169043287,-815.65,0.00026539,2]
[321413686,1712169043296,-1143.39,0.00026549,2]
[321413687,1712169043306,-333.20438,0.0002666,2]
[321413688,1712169043316,-333.20438,0.0002697,2]
[321413689,1712169043326,-1400.0,0.00027,3]
[321413690,1712169043336,-205.762915,0.00027123,2]
[321413691,1712169043346,-299.52,0.00027296,2]
[321413692,1712169043356,-250.0,0.00027397,2]
[321413693,1712169043367,-210.550743,0.00027397,7]
[321413694,1712169043376,-210.550743,0.00027397,7]
[321413695,1712169043386,-210.550743,0.00027397,7]
[321413696,1712169043395,-210.550743,0.00027397,7]
[321413697,1712169043404,-210.550743,0.00027397,7]
[321413698,1712169043415,-210.550743,0.00027397,7]
[321413699,1712169043425,-161.27,0.00027447,2]
[321413700,1712169043435,-3973.56314093,0.0002784,2]
[321413701,1712169043445,-7392.21506808,0.0002784,2]
[321413702,1712169043455,-205.762915,0.00027945,14]
[321413703,1712169043464,-1366.37557177,0.00028,2]
[321413704,1712169043474,-201.19937768,0.00028,2]
[321413705,1712169043483,-170.2,0.00028311,2]
[321413706,1712169043493,-160.39564455,0.00028492,2]
[321413707,1712169043502,-214.0,0.00028666,2]
[321413708,1712169043512,-205.762915,0.00028767,14]
[321413709,1712169043522,-815.65,0.00028803,2]
[321413710,1712169043531,-700.48,0.00028963,2]
[321413711,1712169043541,-1450.0,0.00029,3]
[321413712,1712169043552,-1143.39,0.00029289,2]
[321413713,1712169043562,-3973.56314093,0.0002942,2]
[321413714,1712169043571,-7392.21506808,0.0002942,2]
[321413715,1712169043581,-440.96392074,0.000295,3]
[321413716,1712169043591,-205.762915,0.00029589,14]
[321413717,1712169043601,-18335.7886884,0.0002979,2]
[321413718,1712169043610,-585.53961238,0.0002979,2]
[321413719,1712169043620,-174635.01235926,0.00029877,2]
[321413720,1712169043630,-216.49146301,0.0002988,2]
[321413721,1712169043639,-1571012.40964306,0.0002988,5]
[321413722,1712169043649,-669850.37507134,0.0002988,2]
[321413724,1712169043661,-293.7,0.0002988,2]
[321413726,1712169044911,-320.46346053,0.0002488,2]
[321413727,1712169044927,-190.58706558,0.0002988,2]
[321413728,1712169044945,-3323.36262714,0.0002988,2]
[321413729,1712169044964,-3246.59488987,0.0002988,2]